[Event "Titled Tuesday Blitz November 14 Early 2023"]
[White "ChessLebaneseSalah"]
[Black "Asavasaetakul, Chawit"]
[BlackFideId "6204856"]
[WhiteElo "2410"]
[BlackElo "2621"]
[Result "0-1"]
[Round "4"]
[TimeControl "180+1"]
[Date "2023.11.14"]
[WhiteClock "0:00:06"]
[BlackClock "0:00:24"]
[Board "140"]

1. e4 {[%clk 0:03:00]}  e5 {[%clk 0:02:22]} 2. Nf3 {[%clk 0:02:59]}  Nc6 {[%clk 0:02:21]} 3. Bb5 {[%clk 0:02:58]}  Nf6 {[%clk 0:02:21]} 4. d3 {[%clk 0:02:58]}  Bc5 {[%clk 0:02:17]} 5. c3 {[%clk 0:02:58]}  a6 {[%clk 0:02:16]} 6. Ba4 {[%clk 0:02:57]}  b5 {[%clk 0:02:15]} 7. Bb3 {[%clk 0:02:54]}  d6 {[%clk 0:02:14]} 8. a4 {[%clk 0:02:50]}  Rb8 {[%clk 0:02:14]} 9. Nbd2 {[%clk 0:02:47]}  O-O {[%clk 0:02:12]} 10. O-O {[%clk 0:02:45]}  Re8 {[%clk 0:02:11]} 11. Re1 {[%clk 0:02:42]}  h6 {[%clk 0:02:11]} 12. h3 {[%clk 0:02:42]}  Be6 {[%clk 0:02:10]} 13. Nf1 {[%clk 0:02:35]}  b4 {[%clk 0:02:06]} 14. Bxe6 {[%clk 0:02:26]}  fxe6 {[%clk 0:02:06]} 15. d4 {[%clk 0:02:11]}  bxc3 {[%clk 0:02:05]} 16. bxc3 {[%clk 0:02:05]}  exd4 {[%clk 0:02:05]} 17. cxd4 {[%clk 0:02:03]}  Bb6 {[%clk 0:01:58]} 18. Ng3 {[%clk 0:01:57]}  e5 {[%clk 0:01:49]} 19. Be3 {[%clk 0:01:47]}  exd4 {[%clk 0:01:42]} 20. Nxd4 {[%clk 0:01:46]}  Ne5 {[%clk 0:01:39]} 21. Rc1 {[%clk 0:01:33]}  Qd7 {[%clk 0:01:36]} 22. Ndf5 {[%clk 0:01:25]}  Kh8 {[%clk 0:01:35]} 23. Bxb6 {[%clk 0:01:18]}  Rxb6 {[%clk 0:01:35]} 24. Qd2 {[%clk 0:01:08]}  Rb3 {[%clk 0:01:28]} 25. Rc3 {[%clk 0:00:55]}  Qxa4 {[%clk 0:01:11]} 26. Rxc7 {[%clk 0:00:50]}  Rd3 {[%clk 0:00:55]} 27. Qc1 {[%clk 0:00:39]}  Rxg3 {[%clk 0:00:30]} 28. fxg3 {[%clk 0:00:22]}  Nd3 {[%clk 0:00:30]} 29. Qc3 {[%clk 0:00:12]}  Nxe1 {[%clk 0:00:28]} 30. Rxg7 {[%clk 0:00:10]}  Qxe4 {[%clk 0:00:24]} 31. Qxf6 {[%clk 0:00:06]}  Qxg2# {[%clk 0:00:24]} 0-1


[Site "https://www.chess.com"]

[Event "Titled Tuesday Blitz November 14 Early 2023"]
[White "Zarnicki, Pablo"]
[Black "Marcziter, Dmitrii"]
[WhiteFideId "100137"]
[BlackFideId "13900765"]
[WhiteElo "2596"]
[BlackElo "2409"]
[Result "1-0"]
[Round "4"]
[TimeControl "180+1"]
[Date "2023.11.14"]
[WhiteClock "0:00:22"]
[BlackClock "0:00:38"]
[Board "142"]

1. e4 {[%clk 0:02:57]}  e5 {[%clk 0:02:58]} 2. Nf3 {[%clk 0:02:56]}  Nc6 {[%clk 0:02:58]} 3. d4 {[%clk 0:02:57]}  exd4 {[%clk 0:02:58]} 4. c3 {[%clk 0:02:56]}  d3 {[%clk 0:02:56]} 5. Bxd3 {[%clk 0:02:55]}  d5 {[%clk 0:02:56]} 6. exd5 {[%clk 0:02:53]}  Qxd5 {[%clk 0:02:56]} 7. O-O {[%clk 0:02:54]}  Nf6 {[%clk 0:02:54]} 8. Qe2+ {[%clk 0:02:50]}  Be6 {[%clk 0:02:51]} 9. Ng5 {[%clk 0:02:41]}  O-O-O {[%clk 0:02:43]} 10. Bc2 {[%clk 0:02:27]}  Bg4 {[%clk 0:02:25]} 11. f3 {[%clk 0:02:19]}  Bc5+ {[%clk 0:02:25]} 12. Kh1 {[%clk 0:02:18]}  Rhe8 {[%clk 0:02:24]} 13. Qb5 {[%clk 0:02:18]}  a6 {[%clk 0:02:19]} 14. Qa4 {[%clk 0:02:14]}  Bh5 {[%clk 0:01:58]} 15. Bf4 {[%clk 0:01:42]}  Bg6 {[%clk 0:01:44]} 16. Nd2 {[%clk 0:01:24]}  Bxc2 {[%clk 0:01:34]} 17. Qxc2 {[%clk 0:01:18]}  Be3 {[%clk 0:01:28]} 18. Bxe3 {[%clk 0:01:05]}  Rxe3 {[%clk 0:01:28]} 19. Nde4 {[%clk 0:01:05]}  Rd3 {[%clk 0:01:17]} 20. Nxf6 {[%clk 0:00:39]}  gxf6 {[%clk 0:01:15]} 21. Ne4 {[%clk 0:00:39]}  f5 {[%clk 0:01:12]} 22. Ng3 {[%clk 0:00:40]}  Rd2 {[%clk 0:01:03]} 23. Qc1 {[%clk 0:00:30]}  h5 {[%clk 0:00:53]} 24. Re1 {[%clk 0:00:23]}  h4 {[%clk 0:00:49]} 25. Nf1 {[%clk 0:00:23]}  f4 {[%clk 0:00:40]} 26. Nxd2 {[%clk 0:00:21]}  Qxd2 {[%clk 0:00:41]} 27. Qxd2 {[%clk 0:00:21]}  Rxd2 {[%clk 0:00:41]} 28. Rad1 {[%clk 0:00:22]}  Rxb2 {[%clk 0:00:38]} 29. Re8+ {[%clk 0:00:22]} 1-0


[Site "https://www.chess.com"]

[Event "Titled Tuesday Blitz November 14 Early 2023"]
[White "Jackalhead_Anubis"]
[Black "Tasev, Dejan"]
[BlackFideId "936618"]
[WhiteElo "2408"]
[BlackElo "2577"]
[Result "0-1"]
[Round "4"]
[TimeControl "180+1"]
[Date "2023.11.14"]
[WhiteClock "0:01:40"]
[BlackClock "0:01:50"]
[Board "143"]

1. e4 {[%clk 0:03:00]}  c6 {[%clk 0:02:59]} 2. Nf3 {[%clk 0:03:00]}  d5 {[%clk 0:02:59]} 3. Nc3 {[%clk 0:03:00]}  Bg4 {[%clk 0:02:59]} 4. h3 {[%clk 0:03:00]}  Bxf3 {[%clk 0:02:59]} 5. Qxf3 {[%clk 0:03:00]}  e6 {[%clk 0:02:59]} 6. Be2 {[%clk 0:02:58]}  Nf6 {[%clk 0:02:59]} 7. O-O {[%clk 0:02:46]}  Be7 {[%clk 0:02:56]} 8. e5 {[%clk 0:02:46]}  Nfd7 {[%clk 0:02:54]} 9. d4 {[%clk 0:02:45]}  a6 {[%clk 0:02:54]} 10. Qg3 {[%clk 0:02:45]}  g6 {[%clk 0:02:51]} 11. Bh6 {[%clk 0:02:44]}  c5 {[%clk 0:02:48]} 12. Rad1 {[%clk 0:02:33]}  cxd4 {[%clk 0:02:46]} 13. Rxd4 {[%clk 0:02:32]}  Nc6 {[%clk 0:02:46]} 14. Rd3 {[%clk 0:02:21]}  Ndxe5 {[%clk 0:02:24]} 15. Bg7 {[%clk 0:02:19]}  Nxd3 {[%clk 0:02:18]} 16. Bxh8 {[%clk 0:02:18]}  Nc5 {[%clk 0:02:07]} 17. Bf3 {[%clk 0:01:40]}  Bd6 {[%clk 0:01:50]} 0-1


[Site "https://www.chess.com"]

[Event "Titled Tuesday Blitz November 14 Early 2023"]
[White "Dwilewicz, Katarzyna"]
[Black "Yaksin, Oleg"]
[WhiteFideId "1148486"]
[BlackFideId "24105880"]
[WhiteElo "2393"]
[BlackElo "2532"]
[Result "0-1"]
[Round "4"]
[TimeControl "180+1"]
[Date "2023.11.14"]
[WhiteClock "0:00:00"]
[BlackClock "0:00:15"]
[Board "148"]

1. e4 {[%clk 0:03:00]}  c5 {[%clk 0:02:55]} 2. c3 {[%clk 0:02:59]}  Nf6 {[%clk 0:02:54]} 3. e5 {[%clk 0:02:59]}  Nd5 {[%clk 0:02:54]} 4. Nf3 {[%clk 0:02:59]}  Nc6 {[%clk 0:02:50]} 5. d4 {[%clk 0:02:59]}  cxd4 {[%clk 0:02:49]} 6. Bc4 {[%clk 0:02:58]}  e6 {[%clk 0:02:46]} 7. cxd4 {[%clk 0:02:56]}  d6 {[%clk 0:02:46]} 8. O-O {[%clk 0:02:54]}  Be7 {[%clk 0:02:45]} 9. Nc3 {[%clk 0:02:53]}  Nxc3 {[%clk 0:02:43]} 10. bxc3 {[%clk 0:02:52]}  dxe5 {[%clk 0:02:44]} 11. dxe5 {[%clk 0:02:45]}  Qxd1 {[%clk 0:02:43]} 12. Rxd1 {[%clk 0:02:44]}  Bd7 {[%clk 0:02:43]} 13. Rb1 {[%clk 0:02:40]}  O-O-O {[%clk 0:02:38]} 14. Be3 {[%clk 0:02:32]}  h6 {[%clk 0:02:34]} 15. Rb2 {[%clk 0:02:11]}  Kc7 {[%clk 0:02:06]} 16. Rdb1 {[%clk 0:02:08]}  b6 {[%clk 0:01:57]} 17. Kf1 {[%clk 0:02:02]}  Rb8 {[%clk 0:01:56]} 18. Ke2 {[%clk 0:02:00]}  Rhd8 {[%clk 0:01:54]} 19. g3 {[%clk 0:01:34]}  Bc8 {[%clk 0:01:41]} 20. h4 {[%clk 0:01:31]}  Bb7 {[%clk 0:01:39]} 21. Bb5 {[%clk 0:01:11]}  Na5 {[%clk 0:01:33]} 22. Nd4 {[%clk 0:00:53]}  Bc5 {[%clk 0:01:31]} 23. Bd3 {[%clk 0:00:47]}  Bxd4 {[%clk 0:01:13]} 24. cxd4 {[%clk 0:00:45]}  Bd5 {[%clk 0:01:09]} 25. h5 {[%clk 0:00:42]}  Rdc8 {[%clk 0:01:03]} 26. f4 {[%clk 0:00:39]}  Kd7 {[%clk 0:00:58]} 27. g4 {[%clk 0:00:39]}  Nc4 {[%clk 0:00:57]} 28. Bxc4 {[%clk 0:00:38]}  Bxc4+ {[%clk 0:00:57]} 29. Kd2 {[%clk 0:00:37]}  Bd5 {[%clk 0:00:56]} 30. Rg1 {[%clk 0:00:32]}  g6 {[%clk 0:00:25]} 31. hxg6 {[%clk 0:00:21]}  fxg6 {[%clk 0:00:26]} 32. f5 {[%clk 0:00:21]}  exf5 {[%clk 0:00:20]} 33. gxf5 {[%clk 0:00:21]}  gxf5 {[%clk 0:00:19]} 34. Rg7+ {[%clk 0:00:20]}  Ke6 {[%clk 0:00:19]} 35. Bxh6 {[%clk 0:00:19]}  Rg8 {[%clk 0:00:18]} 36. Ke3 {[%clk 0:00:08]}  Rxg7 {[%clk 0:00:18]} 37. Bxg7 {[%clk 0:00:09]}  Rg8 {[%clk 0:00:18]} 38. Bf6 {[%clk 0:00:09]}  Rg3+ {[%clk 0:00:18]} 39. Kf4 {[%clk 0:00:09]}  Rg4+ {[%clk 0:00:17]} 40. Ke3 {[%clk 0:00:08]}  f4+ {[%clk 0:00:18]} 41. Kd3 {[%clk 0:00:05]}  Rg3+ {[%clk 0:00:18]} 42. Kd2 {[%clk 0:00:04]}  Rg2+ {[%clk 0:00:18]} 43. Kc3 {[%clk 0:00:04]}  f3 {[%clk 0:00:18]} 44. Bh4 {[%clk 0:00:01]}  Rxb2 {[%clk 0:00:16]} 45. Kxb2 {[%clk 0:00:02]}  Kf5 {[%clk 0:00:16]} 46. Kc3 {[%clk 0:00:02]}  Kg4 {[%clk 0:00:15]} 47. Bf2 {[%clk 0:00:03]}  Kh3 {[%clk 0:00:13]} 48. Kd3 {[%clk 0:00:02]}  Kg2 {[%clk 0:00:14]} 49. Ke3 {[%clk 0:00:02]}  Bxa2 {[%clk 0:00:14]} 50. Be1 {[%clk 0:00:01]}  Bd5 {[%clk 0:00:14]} 51. Bf2 {[%clk 0:00:01]}  a5 {[%clk 0:00:15]} 52. Be1 {[%clk 0:00:00]}  a4 {[%clk 0:00:15]} 0-1


[Site "https://www.chess.com"]

[Event "Titled Tuesday Blitz November 14 Early 2023"]
[White "LeoLV10"]
[Black "Jamal-Jamal-Jamal"]
[WhiteElo "2531"]
[BlackElo "2372"]
[Result "0-1"]
[Round "4"]
[TimeControl "180+1"]
[Date "2023.11.14"]
[WhiteClock "0:00:09"]
[BlackClock "0:00:32"]
[Board "152"]

1. e4 {[%clk 0:03:00]}  c5 {[%clk 0:03:00]} 2. Nf3 {[%clk 0:02:59]}  a6 {[%clk 0:03:00]} 3. c4 {[%clk 0:02:58]}  Nc6 {[%clk 0:02:59]} 4. d4 {[%clk 0:02:59]}  cxd4 {[%clk 0:02:59]} 5. Nxd4 {[%clk 0:03:00]}  Nf6 {[%clk 0:02:58]} 6. Nc3 {[%clk 0:02:59]}  e5 {[%clk 0:02:58]} 7. Nc2 {[%clk 0:02:55]}  Bc5 {[%clk 0:02:58]} 8. Be2 {[%clk 0:02:51]}  d6 {[%clk 0:02:56]} 9. a3 {[%clk 0:02:50]}  O-O {[%clk 0:02:55]} 10. b4 {[%clk 0:02:49]}  Ba7 {[%clk 0:02:54]} 11. O-O {[%clk 0:02:48]}  Nd4 {[%clk 0:02:54]} 12. Bb2 {[%clk 0:02:31]}  Be6 {[%clk 0:02:46]} 13. Ne3 {[%clk 0:02:26]}  Rc8 {[%clk 0:02:41]} 14. Bd3 {[%clk 0:02:16]}  Qd7 {[%clk 0:02:29]} 15. Rc1 {[%clk 0:02:15]}  Rfd8 {[%clk 0:02:28]} 16. Ned5 {[%clk 0:01:59]}  Bxd5 {[%clk 0:02:26]} 17. Nxd5 {[%clk 0:01:54]}  Nxd5 {[%clk 0:02:25]} 18. exd5 {[%clk 0:01:54]}  b5 {[%clk 0:02:19]} 19. Qh5 {[%clk 0:01:21]}  g6 {[%clk 0:02:17]} 20. Qh4 {[%clk 0:01:21]}  bxc4 {[%clk 0:02:12]} 21. Bc2 {[%clk 0:01:17]}  c3 {[%clk 0:01:59]} 22. Ba1 {[%clk 0:01:16]}  Ne2+ {[%clk 0:01:57]} 23. Kh1 {[%clk 0:01:17]}  Nxc1 {[%clk 0:01:58]} 24. Rxc1 {[%clk 0:01:18]}  Kg7 {[%clk 0:01:55]} 25. Rf1 {[%clk 0:01:14]}  f5 {[%clk 0:01:53]} 26. Qh3 {[%clk 0:01:12]}  Bd4 {[%clk 0:01:47]} 27. Qd3 {[%clk 0:01:08]}  Qb5 {[%clk 0:01:37]} 28. Qd1 {[%clk 0:01:06]}  Qxd5 {[%clk 0:01:34]} 29. Qe2 {[%clk 0:00:58]}  Qf7 {[%clk 0:01:26]} 30. a4 {[%clk 0:00:53]}  e4 {[%clk 0:01:21]} 31. Qxa6 {[%clk 0:00:51]}  Bf6 {[%clk 0:01:16]} 32. b5 {[%clk 0:00:38]}  d5 {[%clk 0:01:15]} 33. b6 {[%clk 0:00:38]}  d4 {[%clk 0:01:13]} 34. Qb5 {[%clk 0:00:33]}  d3 {[%clk 0:01:11]} 35. Bb3 {[%clk 0:00:33]}  Qe7 {[%clk 0:01:09]} 36. a5 {[%clk 0:00:29]}  c2 {[%clk 0:01:03]} 37. Bxf6+ {[%clk 0:00:27]}  Qxf6 {[%clk 0:01:03]} 38. b7 {[%clk 0:00:26]}  c1=Q {[%clk 0:00:59]} 39. Bd1 {[%clk 0:00:17]}  Qcc6 {[%clk 0:00:54]} 40. bxc8=Q {[%clk 0:00:13]}  Rxc8 {[%clk 0:00:50]} 41. Qb4 {[%clk 0:00:13]}  Qfd6 {[%clk 0:00:45]} 42. Qb2+ {[%clk 0:00:13]}  Qf6 {[%clk 0:00:42]} 43. Qb4 {[%clk 0:00:12]}  Qc5 {[%clk 0:00:39]} 44. Qb7+ {[%clk 0:00:12]}  Qc7 {[%clk 0:00:39]} 45. Qb4 {[%clk 0:00:12]}  Qfc3 {[%clk 0:00:37]} 46. Qb5 {[%clk 0:00:11]}  Q3xa5 {[%clk 0:00:35]} 47. Qb2+ {[%clk 0:00:11]}  Qae5 {[%clk 0:00:34]} 48. Qb3 {[%clk 0:00:11]}  Rb8 {[%clk 0:00:33]} 49. Qa4 {[%clk 0:00:09]}  Qxh2# {[%clk 0:00:32]} 0-1


[Site "https://www.chess.com"]

[Event "Titled Tuesday Blitz November 14 Early 2023"]
[White "Melikhov, Evgeny V."]
[Black "TomLiu777"]
[WhiteFideId "4122046"]
[WhiteElo "2374"]
[BlackElo "2531"]
[Result "1/2-1/2"]
[Round "4"]
[TimeControl "180+1"]
[Date "2023.11.14"]
[WhiteClock "0:00:30"]
[BlackClock "0:00:15"]
[Board "153"]

1. d4 {[%clk 0:03:00]}  Nf6 {[%clk 0:02:59]} 2. c4 {[%clk 0:03:00]}  c5 {[%clk 0:02:59]} 3. d5 {[%clk 0:02:59]}  e6 {[%clk 0:03:00]} 4. Nc3 {[%clk 0:02:59]}  exd5 {[%clk 0:03:00]} 5. cxd5 {[%clk 0:03:00]}  d6 {[%clk 0:03:01]} 6. Nf3 {[%clk 0:03:00]}  g6 {[%clk 0:03:01]} 7. h3 {[%clk 0:03:00]}  Bg7 {[%clk 0:03:02]} 8. e4 {[%clk 0:03:00]}  O-O {[%clk 0:03:02]} 9. Bd3 {[%clk 0:03:00]}  b5 {[%clk 0:03:03]} 10. Nxb5 {[%clk 0:02:59]}  Re8 {[%clk 0:03:01]} 11. O-O {[%clk 0:02:56]}  Nxe4 {[%clk 0:03:01]} 12. Re1 {[%clk 0:02:56]}  a6 {[%clk 0:03:02]} 13. Na3 {[%clk 0:02:53]}  Nf6 {[%clk 0:03:03]} 14. Rxe8+ {[%clk 0:02:52]}  Nxe8 {[%clk 0:03:04]} 15. Nc4 {[%clk 0:02:51]}  Bb7 {[%clk 0:02:54]} 16. Bf4 {[%clk 0:02:47]}  Bxd5 {[%clk 0:02:38]} 17. Be2 {[%clk 0:02:47]}  Be4 {[%clk 0:01:48]} 18. Nxd6 {[%clk 0:02:35]}  Nxd6 {[%clk 0:01:47]} 19. Qxd6 {[%clk 0:02:35]}  Nc6 {[%clk 0:01:42]} 20. Qxc5 {[%clk 0:02:27]}  Nd4 {[%clk 0:01:26]} 21. Nxd4 {[%clk 0:02:14]}  Bxd4 {[%clk 0:01:27]} 22. Qd6 {[%clk 0:02:14]}  Qxd6 {[%clk 0:01:10]} 23. Bxd6 {[%clk 0:02:14]}  Bxb2 {[%clk 0:01:11]} 24. Rd1 {[%clk 0:02:13]}  a5 {[%clk 0:01:07]} 25. Bc5 {[%clk 0:01:50]}  Bf6 {[%clk 0:00:58]} 26. Bd4 {[%clk 0:01:49]}  Kg7 {[%clk 0:00:53]} 27. Bxf6+ {[%clk 0:01:47]}  Kxf6 {[%clk 0:00:54]} 28. Rd6+ {[%clk 0:01:39]}  Ke7 {[%clk 0:00:49]} 29. Rb6 {[%clk 0:01:35]}  Bd5 {[%clk 0:00:43]} 30. a3 {[%clk 0:01:34]}  Be6 {[%clk 0:00:40]} 31. g4 {[%clk 0:01:29]}  g5 {[%clk 0:00:40]} 32. Bd3 {[%clk 0:01:24]}  h6 {[%clk 0:00:40]} 33. Bf5 {[%clk 0:01:24]}  Rc8 {[%clk 0:00:36]} 34. Bxe6 {[%clk 0:01:22]}  fxe6 {[%clk 0:00:37]} 35. Rb5 {[%clk 0:01:17]}  Ra8 {[%clk 0:00:37]} 36. a4 {[%clk 0:01:07]}  Ra7 {[%clk 0:00:35]} 37. Kg2 {[%clk 0:01:07]}  Kf6 {[%clk 0:00:35]} 38. Kg3 {[%clk 0:01:07]}  Ra6 {[%clk 0:00:33]} 39. f4 {[%clk 0:01:06]}  Ra8 {[%clk 0:00:28]} 40. f5 {[%clk 0:01:00]}  exf5 {[%clk 0:00:27]} 41. gxf5 {[%clk 0:00:56]}  Ra6 {[%clk 0:00:26]} 42. Kg4 {[%clk 0:00:56]}  Rd6 {[%clk 0:00:16]} 43. Rxa5 {[%clk 0:00:56]}  Rd4+ {[%clk 0:00:17]} 44. Kg3 {[%clk 0:00:56]}  Rd3+ {[%clk 0:00:17]} 45. Kg2 {[%clk 0:00:53]}  Ra3 {[%clk 0:00:17]} 46. Kh2 {[%clk 0:00:45]}  h5 {[%clk 0:00:17]} 47. Kg2 {[%clk 0:00:44]}  h4 {[%clk 0:00:17]} 48. Kh2 {[%clk 0:00:44]}  Ra2+ {[%clk 0:00:17]} 49. Kg1 {[%clk 0:00:44]}  Ra3 {[%clk 0:00:16]} 50. Kg2 {[%clk 0:00:44]}  Ra2+ {[%clk 0:00:17]} 51. Kg1 {[%clk 0:00:31]}  Ra3 {[%clk 0:00:17]} 52. Kg2 {[%clk 0:00:31]}  Rg3+ {[%clk 0:00:17]} 53. Kh2 {[%clk 0:00:30]}  Ra3 {[%clk 0:00:15]} 54. Kg2 {[%clk 0:00:30]} 1/2-1/2


[Site "https://www.chess.com"]

[Event "Titled Tuesday Blitz November 14 Early 2023"]
[White "Molenda, Marcin"]
[Black "EvgenyBurmakin"]
[WhiteFideId "1173065"]
[WhiteElo "2524"]
[BlackElo "2361"]
[Result "1-0"]
[Round "4"]
[TimeControl "180+1"]
[Date "2023.11.14"]
[WhiteClock "0:00:15"]
[BlackClock "0:00:05"]
[Board "157"]

1. Nf3 {[%clk 0:03:00]}  Nf6 {[%clk 0:02:59]} 2. c4 {[%clk 0:02:59]}  g6 {[%clk 0:02:59]} 3. Nc3 {[%clk 0:02:56]}  Bg7 {[%clk 0:03:00]} 4. d4 {[%clk 0:02:49]}  O-O {[%clk 0:02:59]} 5. e4 {[%clk 0:02:49]}  d6 {[%clk 0:02:59]} 6. Be2 {[%clk 0:02:48]}  e5 {[%clk 0:02:59]} 7. Be3 {[%clk 0:02:47]}  Ng4 {[%clk 0:02:39]} 8. Bg5 {[%clk 0:02:43]}  f6 {[%clk 0:02:38]} 9. Bc1 {[%clk 0:02:43]}  exd4 {[%clk 0:02:26]} 10. Nxd4 {[%clk 0:02:43]}  Ne5 {[%clk 0:02:25]} 11. O-O {[%clk 0:02:37]}  Nbc6 {[%clk 0:02:24]} 12. Nc2 {[%clk 0:02:34]}  f5 {[%clk 0:02:20]} 13. exf5 {[%clk 0:02:33]}  Bxf5 {[%clk 0:02:21]} 14. Be3 {[%clk 0:02:27]}  Qd7 {[%clk 0:02:11]} 15. Nd4 {[%clk 0:02:25]}  Nxd4 {[%clk 0:02:09]} 16. Bxd4 {[%clk 0:02:26]}  Rae8 {[%clk 0:01:59]} 17. f4 {[%clk 0:02:05]}  Nc6 {[%clk 0:01:50]} 18. Bxg7 {[%clk 0:02:04]}  Qxg7 {[%clk 0:01:51]} 19. Bf3 {[%clk 0:02:00]}  Qd4+ {[%clk 0:01:44]} 20. Qxd4 {[%clk 0:01:49]}  Nxd4 {[%clk 0:01:45]} 21. Bxb7 {[%clk 0:01:43]}  Nc2 {[%clk 0:01:42]} 22. Rac1 {[%clk 0:01:36]}  Ne3 {[%clk 0:01:36]} 23. Rfe1 {[%clk 0:01:33]}  Bd3 {[%clk 0:01:09]} 24. b3 {[%clk 0:01:27]}  Kg7 {[%clk 0:00:59]} 25. Bf3 {[%clk 0:01:16]}  h5 {[%clk 0:00:17]} 26. Kf2 {[%clk 0:01:12]}  Ng4+ {[%clk 0:00:15]} 27. Bxg4 {[%clk 0:01:13]}  hxg4 {[%clk 0:00:16]} 28. Rxe8 {[%clk 0:01:09]}  Rxe8 {[%clk 0:00:17]} 29. Re1 {[%clk 0:01:09]}  Rxe1 {[%clk 0:00:16]} 30. Kxe1 {[%clk 0:01:10]}  c6 {[%clk 0:00:16]} 31. Kd2 {[%clk 0:01:09]}  Bf1 {[%clk 0:00:15]} 32. g3 {[%clk 0:01:09]}  Kf6 {[%clk 0:00:15]} 33. Ne4+ {[%clk 0:01:03]}  Ke6 {[%clk 0:00:15]} 34. Ke3 {[%clk 0:01:02]}  Bg2 {[%clk 0:00:12]} 35. Nf2 {[%clk 0:00:38]}  Bf3 {[%clk 0:00:08]} 36. Nd3 {[%clk 0:00:37]}  a5 {[%clk 0:00:06]} 37. c5 {[%clk 0:00:37]}  dxc5 {[%clk 0:00:04]} 38. Nxc5+ {[%clk 0:00:36]}  Kd5 {[%clk 0:00:05]} 39. Nb7 {[%clk 0:00:34]}  a4 {[%clk 0:00:05]} 40. bxa4 {[%clk 0:00:34]}  Kc4 {[%clk 0:00:05]} 41. Na5+ {[%clk 0:00:32]}  Kb4 {[%clk 0:00:04]} 42. Nb3 {[%clk 0:00:19]}  Bd5 {[%clk 0:00:04]} 43. a5 {[%clk 0:00:17]}  Bxb3 {[%clk 0:00:03]} 44. axb3 {[%clk 0:00:18]}  Kxa5 {[%clk 0:00:04]} 45. Kd4 {[%clk 0:00:17]}  Kb4 {[%clk 0:00:04]} 46. Ke5 {[%clk 0:00:13]}  Kxb3 {[%clk 0:00:02]} 47. Kd6 {[%clk 0:00:14]}  Kc3 {[%clk 0:00:02]} 48. Kxc6 {[%clk 0:00:14]}  Kd4 {[%clk 0:00:03]} 49. Kd6 {[%clk 0:00:15]}  Ke4 {[%clk 0:00:04]} 50. Ke6 {[%clk 0:00:15]}  Kf3 {[%clk 0:00:05]} 51. Kf6 {[%clk 0:00:15]}  Kg2 {[%clk 0:00:05]} 52. Kg5 {[%clk 0:00:15]}  Kxh2 {[%clk 0:00:05]} 53. Kxg4 {[%clk 0:00:16]}  Kg2 {[%clk 0:00:05]} 54. Kh4 {[%clk 0:00:15]}  Kf3 {[%clk 0:00:05]} 55. Kh3 {[%clk 0:00:15]}  Kf2 {[%clk 0:00:04]} 56. Kg4 {[%clk 0:00:14]}  Kg2 {[%clk 0:00:05]} 57. Kh4 {[%clk 0:00:14]}  Kf3 {[%clk 0:00:05]} 58. Kh3 {[%clk 0:00:13]}  Kf2 {[%clk 0:00:05]} 59. g4 {[%clk 0:00:13]}  Kf3 {[%clk 0:00:06]} 60. f5 {[%clk 0:00:13]}  gxf5 {[%clk 0:00:04]} 61. gxf5 {[%clk 0:00:14]}  Kf4 {[%clk 0:00:04]} 62. f6 {[%clk 0:00:14]}  Kg5 {[%clk 0:00:05]} 63. f7 {[%clk 0:00:15]}  Kf6 {[%clk 0:00:06]} 64. f8=Q+ {[%clk 0:00:15]}  Ke5 {[%clk 0:00:05]} 65. Qf3 {[%clk 0:00:15]} 1-0


[Site "https://www.chess.com"]

[Event "Titled Tuesday Blitz November 14 Early 2023"]
[White "HeroRubiksCube"]
[Black "Jarocka, Liwia"]
[BlackFideId "21807558"]
[WhiteElo "2520"]
[BlackElo "2354"]
[Result "1/2-1/2"]
[Round "4"]
[TimeControl "180+1"]
[Date "2023.11.14"]
[WhiteClock "0:00:04"]
[BlackClock "0:00:47"]
[Board "159"]

1. e4 {[%clk 0:03:00]}  d6 {[%clk 0:02:10]} 2. d4 {[%clk 0:03:00]}  e6 {[%clk 0:02:09]} 3. Nf3 {[%clk 0:02:59]}  Nf6 {[%clk 0:02:10]} 4. Nc3 {[%clk 0:02:59]}  Be7 {[%clk 0:02:08]} 5. Be2 {[%clk 0:02:57]}  O-O {[%clk 0:02:09]} 6. O-O {[%clk 0:02:58]}  b6 {[%clk 0:02:07]} 7. h3 {[%clk 0:02:54]}  Bb7 {[%clk 0:02:08]} 8. e5 {[%clk 0:02:55]}  Nd5 {[%clk 0:02:05]} 9. Nxd5 {[%clk 0:02:53]}  Bxd5 {[%clk 0:02:04]} 10. c4 {[%clk 0:02:52]}  Bb7 {[%clk 0:02:05]} 11. Qc2 {[%clk 0:02:51]}  dxe5 {[%clk 0:02:04]} 12. dxe5 {[%clk 0:02:49]}  Nc6 {[%clk 0:02:03]} 13. Rd1 {[%clk 0:02:40]}  Qc8 {[%clk 0:02:03]} 14. a3 {[%clk 0:02:39]}  a5 {[%clk 0:02:02]} 15. Bf4 {[%clk 0:02:35]}  Rd8 {[%clk 0:02:02]} 16. Rxd8+ {[%clk 0:02:34]}  Qxd8 {[%clk 0:02:03]} 17. Rd1 {[%clk 0:02:34]}  Qe8 {[%clk 0:02:03]} 18. Bd3 {[%clk 0:02:26]}  h6 {[%clk 0:02:02]} 19. Be4 {[%clk 0:02:26]}  Rd8 {[%clk 0:02:01]} 20. Rxd8 {[%clk 0:02:15]}  Nxd8 {[%clk 0:02:02]} 21. Nd4 {[%clk 0:02:01]}  Qd7 {[%clk 0:01:44]} 22. Be3 {[%clk 0:01:52]}  Bc5 {[%clk 0:01:38]} 23. Bxb7 {[%clk 0:01:45]}  Bxd4 {[%clk 0:01:36]} 24. Qd3 {[%clk 0:01:22]}  c5 {[%clk 0:01:31]} 25. Ba6 {[%clk 0:01:09]}  Qc7 {[%clk 0:01:22]} 26. Bxd4 {[%clk 0:01:06]}  cxd4 {[%clk 0:01:23]} 27. Qxd4 {[%clk 0:01:06]}  Nc6 {[%clk 0:01:24]} 28. Qd6 {[%clk 0:01:06]}  Qxd6 {[%clk 0:01:18]} 29. exd6 {[%clk 0:01:07]}  Kf8 {[%clk 0:01:16]} 30. Bb5 {[%clk 0:01:02]}  Ne5 {[%clk 0:01:17]} 31. f4 {[%clk 0:00:59]}  Nd3 {[%clk 0:01:17]} 32. g3 {[%clk 0:00:53]}  Nxb2 {[%clk 0:01:15]} 33. Kf2 {[%clk 0:00:52]}  Nd3+ {[%clk 0:01:14]} 34. Ke3 {[%clk 0:00:52]}  Nc5 {[%clk 0:01:13]} 35. g4 {[%clk 0:00:51]}  f6 {[%clk 0:01:14]} 36. h4 {[%clk 0:00:49]}  Kf7 {[%clk 0:01:14]} 37. h5 {[%clk 0:00:46]}  e5 {[%clk 0:01:14]} 38. Bc6 {[%clk 0:00:39]}  Ke6 {[%clk 0:01:11]} 39. Bd5+ {[%clk 0:00:30]}  Kxd6 {[%clk 0:01:11]} 40. Kf3 {[%clk 0:00:29]}  Nd3 {[%clk 0:01:07]} 41. fxe5+ {[%clk 0:00:24]}  Kxe5 {[%clk 0:01:07]} 42. Ke3 {[%clk 0:00:23]}  Nb2 {[%clk 0:01:06]} 43. Bg8 {[%clk 0:00:20]}  Na4 {[%clk 0:01:05]} 44. Bd5 {[%clk 0:00:19]}  Nc5 {[%clk 0:01:06]} 45. Bg8 {[%clk 0:00:18]}  Ne6 {[%clk 0:01:05]} 46. Bxe6 {[%clk 0:00:13]}  Kxe6 {[%clk 0:01:05]} 47. Ke4 {[%clk 0:00:13]}  Ke7 {[%clk 0:01:00]} 48. Kd5 {[%clk 0:00:11]}  Kd7 {[%clk 0:00:54]} 49. a4 {[%clk 0:00:08]}  g6 {[%clk 0:00:49]} 50. hxg6 {[%clk 0:00:08]}  Ke7 {[%clk 0:00:49]} 51. Ke4 {[%clk 0:00:06]}  Kf8 {[%clk 0:00:46]} 52. Kf4 {[%clk 0:00:05]}  Kg8 {[%clk 0:00:46]} 53. Ke4 {[%clk 0:00:05]}  Kf8 {[%clk 0:00:46]} 54. Kf4 {[%clk 0:00:04]}  Kg8 {[%clk 0:00:47]} 55. Ke4 {[%clk 0:00:04]}  Kf8 {[%clk 0:00:47]} 1/2-1/2


[Site "https://www.chess.com"]